bitfinex-derivatives/quotes_ETHF0:USTF0_20241104
["timestamp","ask_amount","ask_price","bid_price","bid_amount"]
[1730758786547,1.07400651,2394.4,2394.1,3.25932745]
[1730758786746,1.49192651,2394.4,2394.2,0.41794]
[1730758787252,1.07400651,2394.4,2394.2,0.41794]
[1730758787843,1.07400651,2394.4,2394.1,3.67727745]
[1730758788051,1.07400651,2394.3,2394.1,3.67727745]
[1730758788352,1.49193651,2394.3,2394.1,3.67727745]
[1730758788653,1.07400651,2394.3,2394.1,3.67727745]
[1730758788952,0.41794,2394.2,2394.1,3.25932745]
[1730758789151,0.41799,2394.0,2393.8,0.41801]
[1730758789551,1.07400651,2394.1,2393.7,0.87031593]
[1730758789755,1.07400651,2394.0,2393.8,0.418]
[1730758790051,1.49198651,2394.0,2393.8,0.418]
[1730758790255,0.41798,2394.0,2393.8,0.418]
[1730758790448,0.41798,2394.0,2393.7,4.12964338]
[1730758790449,1.07400651,2394.1,2394.0,0.41798]
[1730758790650,1.07400651,2394.3,2393.9,6.46712745]
[1730758790948,1.07400651,2394.4,2394.2,0.41793]
[1730758791151,4.28180651,2394.5,2394.1,3.25932745]
[1730758791350,3.2078,2394.5,2394.4,0.41791]
[1730758792245,4.30896535,2394.5,2394.4,0.41791]
[1730758792445,5.03512652,2394.5,2394.4,0.41791]
[1730758793349,3.93396117,2394.5,2393.9,1.956]
[1730758793544,3.93396117,2394.5,2394.4,0.41791]
[1730758795355,4.35185117,2394.5,2394.4,0.41791]
[1730758795559,3.93396117,2394.5,2394.4,0.41791]
[1730758796260,0.72616117,2394.5,2394.4,4.59391]
[1730758796564,1.49177651,2395.2,2394.5,1.04473]
[1730758796856,1.49177651,2395.2,2395.1,0.41779]
[1730758797259,1.49177651,2395.2,2394.6,3.25932745]
[1730758797467,1.49177651,2395.2,2395.1,0.41779]
[1730758797757,1.49177651,2395.2,2395.0,0.41779]
[1730758797959,1.49177651,2395.2,2394.7,0.41786]
[1730758798152,1.49177651,2395.2,2395.1,0.41779]
[1730758798355,1.49177651,2395.2,2395.1,4.0316298]
[1730758798548,1.49177651,2395.2,2395.1,4.68450966]
[1730758799260,2.02868954,2395.2,2395.1,4.03454826]
[1730758799460,6.20388954,2395.2,2395.1,3.57930393]
[1730758799653,8.42348303,2395.2,2395.1,3.57930393]
[1730758800462,6.22724466,2395.2,2395.1,3.57930393]
[1730758800662,4.59297,2395.2,2395.1,3.57930393]
[1730758800865,6.2271654,2395.2,2395.1,3.57930393]
[1730758801055,6.22716033,2395.2,2395.1,3.57930393]
[1730758801255,2.05196033,2395.2,2395.1,3.00324735]
[1730758801564,2.05196033,2395.2,2395.1,3.58414835]
[1730758801565,4.59297,2395.2,2395.1,3.58414835]
[1730758802163,6.74098303,2395.2,2395.1,3.22664616]
[1730758802656,4.59297,2395.2,2395.1,3.5842133]
[1730758803157,6.74098303,2395.2,2395.1,3.5842133]
[1730758803370,4.59297,2395.2,2395.1,3.5842133]
[1730758803755,6.74098303,2395.2,2395.1,3.5842133]
[1730758803957,2.56578303,2395.2,2395.1,3.5842133]
[1730758804260,2.05421856,2395.2,2395.1,3.5842133]
[1730758804869,0.41777,2395.2,2395.1,3.5842133]
[1730758805066,2.0542842,2395.2,2395.1,3.5842133]
[1730758805263,0.41777,2395.2,2395.1,3.5842133]
[1730758805456,2.56578303,2395.2,2395.1,3.5842133]
[1730758805961,6.74098303,2395.2,2395.1,3.5842133]
[1730758806667,6.74098303,2395.2,2395.1,2.27845358]
[1730758807063,6.74098303,2395.2,2395.1,1.92088644]
[1730758807260,4.59297,2395.2,2395.1,1.69748763]
[1730758807566,4.59297,2395.2,2395.1,1.91998155]
[1730758808452,7.27798628,2395.2,2395.1,1.91998155]
[1730758809362,7.27798628,2395.2,2395.1,2.2761087]
[1730758809563,7.27798628,2395.2,2395.1,1.91998155]
[1730758809962,4.59297,2395.2,2395.1,1.91998155]
[1730758810364,7.32193367,2395.2,2395.1,1.91998155]
[1730758810667,4.59297,2395.2,2395.1,1.91998155]
[1730758810867,4.1752,2395.2,2394.7,0.6499614]
[1730758811062,5.26296734,2394.8,2394.7,1.0678214]
[1730758811266,5.26296734,2394.8,2394.7,2.72837878]
[1730758811467,5.26296734,2394.8,2394.7,1.66055738]
[1730758812062,9.43896734,2394.8,2394.7,1.66055738]
[1730758812370,7.80164,2394.8,2394.7,1.66055738]
[1730758812566,10.53051891,2394.8,2394.7,0.35455322]
[1730758813661,6.35451891,2394.8,2394.7,0.35455322]
[1730758813874,3.62564,2394.8,2394.7,1.65161239]
[1730758814371,3.62564,2394.8,2394.7,0.35455322]
[1730758814568,6.35451891,2394.8,2394.7,0.35455322]
[1730758816474,3.62564,2394.8,2394.7,0.35455322]
[1730758816671,3.62564,2394.8,2394.7,1.64454328]
[1730758816979,5.81122833,2394.8,2394.7,1.64454328]
[1730758817169,3.62564,2394.8,2394.7,1.64454328]
[1730758817479,6.35451891,2394.8,2394.7,1.64454328]
[1730758817672,3.62564,2394.8,2394.7,1.64454328]
[1730758817881,10.11267891,2394.8,2394.3,1.5839]
[1730758818084,1.09218679,2394.5,2394.4,5.54936246]
[1730758818382,1.09222638,2394.7,2394.6,0.41787]
[1730758818581,4.30002638,2394.8,2394.7,0.41786]
[1730758818776,3.2078,2394.8,2394.7,2.05695013]
[1730758818974,4.29998648,2394.8,2394.7,2.70783143]
[1730758819178,4.29995535,2394.8,2394.7,2.70783143]
[1730758819584,3.2078,2394.8,2394.7,2.70783143]
[1730758819881,4.29988179,2394.8,2394.7,2.70783143]
[1730758820183,4.84608018,2394.8,2394.7,2.05695013]
[1730758820379,1.63828018,2394.8,2394.7,2.05695013]
[1730758820682,1.63828018,2394.8,2394.7,2.70783143]
[1730758820873,1.09219779,2394.8,2394.7,3.73246772]
[1730758821074,1.09212985,2394.8,2394.7,3.73246772]
[1730758821278,1.09212985,2394.8,2394.7,0.41786]
[1730758821472,1.09212985,2394.8,2394.7,3.72365572]
[1730758821783,4.84608018,2394.9,2394.8,0.41784]
[1730758821977,4.84608018,2394.9,2394.8,3.0725835]
[1730758821978,3.2078,2394.9,2394.8,3.0725835]
[1730758822480,4.84593214,2394.9,2394.8,3.0725835]
[1730758822684,4.84593214,2394.9,2394.8,8.9029835]
[1730758822878,4.2998309,2394.9,2394.8,11.33845837]
[1730758823080,3.2078,2394.9,2394.8,11.33845837]
[1730758823475,3.2078,2394.9,2394.8,12.89375837]
[1730758824881,1.63813214,2395.3,2394.9,5.21976]
[1730758824882,1.09167152,2395.3,2394.9,5.21976]
[1730758825088,1.09167152,2395.4,2395.3,0.41775]
[1730758825279,1.63813214,2395.6,2395.5,0.41772]
[1730758825587,1.63813214,2395.7,2395.6,0.4177]
[1730758825885,1.63813214,2395.7,2395.6,3.91281204]
[1730758826279,2.05581214,2395.7,2395.6,3.91281204]
[1730758826586,2.05581214,2395.7,2395.6,3.90538973]
[1730758826978,1.63813214,2395.7,2395.6,3.90538973]
[1730758827487,5.26360214,2395.8,2395.6,3.90538973]
[1730758827688,5.26360214,2395.8,2395.7,2.22201121]
[1730758827986,5.26360214,2395.8,2395.7,2.63969121]
[1730758828180,5.26360214,2395.8,2395.7,2.22201121]
[1730758828488,5.26360214,2395.8,2395.7,1.85505891]
[1730758829392,5.26360214,2395.8,2395.7,0.84754049]
[1730758829788,9.56656525,2395.8,2395.0,3.90445343]
[1730758829996,0.41772,2395.5,2395.3,0.41775]
[1730758830289,1.63371768,2395.6,2395.4,2.2031983]
[1730758830483,2.05142768,2395.6,2395.5,0.84735994]
[1730758830881,2.05142768,2395.6,2395.5,0.62957157]
[1730758831084,2.05142768,2395.6,2395.5,0.84444548]
[1730758831985,0.41771,2395.6,2395.5,1.85179962]
[1730758832187,0.41771,2395.6,2395.5,0.84446072]
[1730758832388,0.41771,2395.6,2395.5,1.8518723]
[1730758832582,2.05142768,2395.6,2395.5,0.84446072]
[1730758833187,2.05142768,2395.6,2395.5,1.84636434]
[1730758833381,0.41771,2395.6,2395.5,1.84631449]
[1730758833784,1.63371768,2395.7,2395.5,1.84631449]
[1730758833988,3.2078,2395.8,2395.6,2.19145111]
[1730758834291,3.2078,2395.8,2395.7,2.6091156]
[1730758835280,3.2078,2395.8,2395.7,2.26399075]
[1730758835482,3.2078,2395.8,2395.7,2.60965542]
[1730758835681,3.2078,2395.8,2395.7,0.6332481]
[1730758835892,3.2078,2395.8,2395.7,2.26047177]
[1730758836088,1.63371768,2396.0,2395.7,2.18779844]
[1730758836288,1.63487238,2396.0,2395.8,0.84142336]
[1730758836483,4.84267238,2396.1,2395.9,0.8413895]
[1730758836795,4.84267238,2396.1,2396.0,1.2590195]
[1730758836796,3.2078,2396.1,2396.0,1.2590195]
[1730758838087,42.85246238,2396.3,2396.0,0.8413895]
[1730758838088,42.43487238,2396.3,2396.0,0.8413895]
[1730758838293,42.43487238,2396.3,2396.2,0.41759]
[1730758838589,5.21224238,2396.4,2396.2,0.41759]
[1730758838899,1.63487238,2396.4,2396.3,3.25932745]
[1730758839187,3.23681954,2397.0,2396.4,1.0439]
[1730758839188,41.21747,2396.9,2396.4,1.0439]
[1730758839390,40.8,2396.9,2396.8,0.41749]
[1730758839591,0.0148,2397.0,2396.8,0.83554524]
[1730758839788,0.0148,2397.0,2396.9,4.51234269]
[1730758839993,0.0148,2397.0,2396.9,9.67682337]
[1730758840199,1.5962,2397.5,2397.4,0.41738]
[1730758840383,2.01357,2397.5,2397.3,3.67671745]
[1730758840587,2.01357,2397.5,2397.3,3.25932745]
[1730758840993,2.01357,2397.5,2397.3,3.67672745]
[1730758841201,1.5962,2397.5,2397.3,3.25932745]
[1730758841494,1.5962,2397.5,2397.3,3.67671745]
[1730758841694,1.5962,2397.5,2397.3,6.88451745]
[1730758841885,1.5962,2397.5,2397.4,0.41738]
[1730758842299,3.2078,2398.0,2397.5,0.41737]
[1730758842507,0.41733,2397.8,2397.5,0.41736]
[1730758843198,1.5611,2397.9,2397.2,3.2078]
[1730758843402,0.41743,2397.2,2396.9,3.62527]
[1730758843603,0.41744,2397.1,2396.9,3.62527]
[1730758843805,1.5308,2397.5,2397.0,0.61487962]
[1730758844000,1.5308,2397.5,2396.9,3.2078]
[1730758844195,0.41745,2397.0,2396.9,3.2078]
[1730758845610,1.6628,2397.3,2396.6,6.46712745]
[1730758845809,1.95128,2396.9,2396.7,0.61451741]
[1730758846010,1.95128,2396.9,2396.6,6.88464745]
[1730758846404,0.41751,2396.7,2396.6,6.46712745]
[1730758846605,0.4175,2396.8,2396.6,6.88464745]
[1730758847310,0.4175,2396.8,2396.6,6.46712745]
[1730758847514,1.5338,2396.9,2396.6,6.88464745]
[1730758847716,0.41749,2396.8,2396.6,6.88464745]
[1730758848410,1.5338,2396.9,2396.6,6.46712745]
[1730758848611,0.4175,2396.8,2396.6,6.88464745]
[1730758849525,0.41749,2396.8,2396.6,6.88464745]
[1730758849816,1.5338,2396.9,2396.6,6.46712745]
[1730758850013,1.95128,2396.9,2396.6,6.46712745]
[1730758850221,1.5338,2396.9,2396.7,0.41749]
[1730758850408,1.5338,2396.9,2396.8,0.41749]
[1730758850718,1.5338,2396.9,2396.6,6.46712745]
[1730758851016,0.4175,2396.8,2396.6,6.88464745]
[1730758851718,0.4175,2396.8,2396.6,3.67684745]
[1730758851920,0.4175,2396.8,2396.6,3.25932745]
[1730758852115,2.01871,2396.7,2396.6,3.25932745]
[1730758852418,2.01871,2396.7,2396.4,0.41754]
[1730758852419,0.41753,2396.6,2396.4,0.41754]
[1730758852727,2.01872,2396.7,2396.5,0.41754]
[1730758853221,1.6012,2396.7,2396.5,0.41753]
[1730758853421,0.41752,2396.6,2396.5,0.41753]
[1730758853623,2.01872,2396.7,2396.5,0.41753]
[1730758854123,0.41753,2396.6,2396.4,0.41755]
[1730758854420,2.01872,2396.7,2396.5,0.41754]
[1730758854620,2.01872,2396.7,2396.6,0.41752]
[1730758854621,1.6012,2396.7,2396.6,0.41752]
[1730758854817,2.01871,2396.7,2396.4,0.61024989]
[1730758855124,2.01871,2396.7,2396.5,0.41753]
[1730758855913,2.01871,2396.7,2396.5,3.62533]
[1730758856525,2.01871,2396.7,2396.5,3.2078]
[1730758856721,1.6012,2396.7,2396.6,0.41752]
[1730758857920,1.6012,2396.7,2396.5,3.2078]
[1730758858224,1.6012,2396.7,2396.6,0.41752]
[1730758858416,2.01871,2396.7,2396.6,0.41752]
[1730758858720,1.6012,2396.7,2396.6,0.41752]
[1730758859825,2.01871,2396.7,2396.5,3.2078]
[1730758860125,2.01871,2396.7,2396.6,0.41752]
[1730758860325,1.6012,2396.7,2396.6,0.41752]
[1730758860627,2.01871,2396.7,2396.6,0.41752]
[1730758860922,1.6012,2396.7,2396.6,0.41752]
[1730758861221,2.01871,2396.7,2396.6,0.41752]
[1730758861419,1.6012,2396.7,2396.6,0.41752]
[1730758862027,2.01871,2396.7,2396.6,0.41752]
[1730758863320,1.6012,2396.7,2396.6,0.41752]
[1730758863515,1.5338,2396.9,2396.6,0.41752]
[1730758863516,1.5338,2396.9,2396.8,0.41749]
[1730758863817,5.1569,2397.4,2397.2,0.4174]
[1730758864024,5.1569,2397.4,2396.8,7.07289805]
[1730758864025,6.2768,2397.4,2397.3,0.4174]
[1730758864229,0.41741,2397.3,2397.2,0.41741]
[1730758864415,0.41741,2397.3,2397.1,0.41742]
[1730758864616,0.41741,2397.3,2396.8,6.46712745]
[1730758864919,6.2768,2397.4,2397.1,0.41742]
[1730758865329,0.41752,2396.6,2396.5,3.2078]
[1730758865628,0.41752,2396.6,2396.5,3.809026]
[1730758865828,41.21752,2396.6,2396.5,3.2078]
[1730758866329,41.21752,2396.6,2396.5,3.62534]
[1730758866330,40.8,2396.6,2396.5,3.62534]
[1730758866631,4.8223,2397.0,2396.5,3.2078]
[1730758866822,0.41752,2396.7,2396.5,3.62533]
[1730758867332,0.41752,2396.6,2396.5,3.2078]
[1730758867532,0.41752,2396.6,2396.5,3.80525083]
[1730758867724,0.41752,2396.6,2396.5,3.62534]
[1730758868024,45.6223,2397.0,2396.6,0.41752]
[1730758868025,0.41751,2396.7,2396.6,0.41752]
[1730758868235,0.41751,2396.7,2396.6,0.59705323]
[1730758868422,45.6223,2397.0,2396.6,0.59784429]
[1730758868623,0.4175,2396.8,2396.6,0.41752]
[1730758869334,0.4175,2396.8,2396.7,0.59558219]
[1730758869633,0.41748,2396.9,2396.7,1.01316258]
[1730758869931,0.41748,2396.9,2396.7,0.4175]
[1730758870134,0.41743,2397.2,2397.0,0.41745]
[1730758870622,0.41743,2397.2,2397.1,0.59535201]
[1730758871225,0.41743,2397.2,2397.0,0.41745]
[1730758871226,3.3066,2397.4,2397.0,0.41745]
[1730758871421,3.3066,2397.4,2397.1,0.59484353]
[1730758871422,0.41743,2397.2,2397.1,0.59484353]
[1730758872034,0.41743,2397.2,2397.1,1.01228353]
[1730758872235,0.41743,2397.2,2397.1,0.59484353]
[1730758873637,0.41751,2396.7,2396.6,3.62532]
[1730758873825,0.41751,2396.7,2396.6,6.50434493]
[1730758874025,0.41751,2396.7,2396.6,1.76306635]
[1730758874430,4.59031,2396.7,2396.6,0.59605946]
[1730758874833,0.41758,2396.3,2396.2,3.62538]
[1730758875040,0.41758,2396.3,2396.2,4.78555767]
[1730758876341,0.41758,2396.3,2396.2,3.62539]
[1730758876634,4.1728,2396.3,2395.6,6.78735926]
[1730758876839,0.41764,2396.0,2395.8,0.41765]
[1730758877038,0.41764,2396.0,2395.9,1.15426499]
[1730758877438,0.41764,2396.0,2395.9,0.21101245]
[1730758881440,4.59124,2396.0,2395.9,0.21101245]
[1730758881633,0.41765,2395.9,2395.8,3.2078]
[1730758881938,0.41765,2395.9,2395.8,3.41943139]
[1730758882239,4.59125,2395.9,2395.8,3.2078]
[1730758883742,4.59125,2395.9,2395.4,0.41773]
[1730758883743,0.4177,2395.6,2395.5,4.14614394]
[1730758884045,1.04415,2395.9,2395.5,0.21121197]
[1730758884249,1.04415,2395.9,2395.6,0.21118259]
[1730758884445,1.04415,2395.9,2395.2,3.2078]
[1730758884663,1.04415,2395.9,2395.3,0.62892423]
[1730758884944,0.41773,2395.5,2395.4,0.21117423]
[1730758885145,41.84418,2395.8,2395.3,0.41775]
[1730758885339,0.41773,2395.4,2395.3,0.41775]
[1730758885540,0.41773,2395.4,2395.3,0.62899712]
[1730758886152,0.41773,2395.4,2395.3,0.21124712]
[1730758887040,0.41775,2395.3,2395.2,3.62556]
[1730758887348,1.5982,2395.6,2395.2,3.2078]
[1730758887646,0.41773,2395.5,2395.4,0.41773]
[1730758888143,0.41773,2395.5,2395.2,3.41905451]
[1730758888349,0.41773,2395.5,2395.4,0.41773]
[1730758888945,0.41774,2395.4,2395.3,0.41774]
[1730758889161,1.5982,2395.6,2395.2,3.83681451]
[1730758889162,0.41775,2395.3,2395.2,3.83681451]
[1730758889446,0.41775,2395.3,2395.2,3.41905451]
[1730758890948,0.41775,2395.3,2395.2,0.21125451]
[1730758891950,4.59295,2395.3,2395.2,0.21125451]
[1730758892846,0.41779,2395.1,2395.0,0.4178]
[1730758893653,0.4178,2395.0,2394.9,0.41781]
[1730758893843,3.2078,2395.4,2394.8,3.2078]
[1730758894047,3.2078,2395.4,2394.9,0.41781]
[1730758894048,0.41782,2395.0,2394.9,0.41781]
[1730758894248,1.6551,2395.3,2394.8,3.2078]
[1730758894552,0.41782,2394.9,2394.8,3.2078]
[1730758895349,0.41788,2394.6,2394.5,3.62568]
[1730758895556,0.41788,2394.6,2394.5,3.2078]
[1730758896860,4.59388,2394.6,2394.5,3.2078]
[1730758897050,4.176,2394.6,2394.1,3.62576]
[1730758897246,0.41794,2394.2,2394.1,3.2078]
[1730758898652,1.5787,2394.8,2394.7,0.41786]
[1730758898856,1.5787,2394.8,2394.7,3.62566]
[1730758899248,1.6268,2395.2,2395.1,0.41779]
[1730758899451,3.1895,2395.2,2395.1,0.41779]
[1730758901552,1.5627,2395.2,2395.1,0.41779]
[1730758903248,8.99722745,2395.2,2394.4,0.57133036]
[1730758903448,0.4179,2394.5,2394.3,0.41791]
[1730758903755,0.41793,2394.3,2394.2,3.62573]
[1730758904053,0.41793,2394.3,2394.2,3.2078]
[1730758905954,0.41794,2394.2,2394.1,0.41795]
[1730758906354,7.46697,2394.7,2394.0,3.2078]
[1730758906655,1.04473,2394.5,2394.0,0.41798]
[1730758906855,3.25932745,2394.2,2393.7,3.2078]
[1730758907054,9.09152745,2394.6,2393.4,0.41807]
[1730758907055,0.41801,2393.8,2393.4,0.41807]
[1730758907248,0.41805,2393.6,2393.4,0.41807]
[1730758908653,0.41806,2393.6,2393.4,0.41807]
[1730758909545,42.4283,2393.7,2393.1,3.2078]
[1730758909746,0.41807,2393.5,2393.3,0.41809]
[1730758909948,1.6283,2393.7,2393.1,3.2078]
[1730758910153,1.6283,2393.7,2393.3,0.41809]
[1730758910154,0.41807,2393.5,2393.3,0.41809]
[1730758910356,0.41808,2393.4,2393.2,0.4181]
[1730758911152,1.6283,2393.7,2393.1,3.2078]
[1730758911358,1.6283,2393.7,2392.9,0.32573107]
[1730758911359,1.6283,2393.7,2393.5,0.41805]
[1730758911558,0.41801,2393.8,2393.6,0.41805]
[1730758911752,0.418,2393.9,2393.7,0.41802]
[1730758912258,0.41798,2394.0,2393.8,0.418]
[1730758912657,0.41798,2394.0,2393.8,0.41801]
[1730758912658,0.41799,2394.0,2393.8,0.41801]
[1730758913454,0.41799,2394.0,2393.7,3.2078]
[1730758913455,1.6286,2394.1,2393.7,3.2078]
[1730758913659,0.41798,2394.0,2393.8,0.418]
[1730758913852,2.04657,2394.1,2393.9,0.41799]
[1730758914258,2.04657,2394.1,2393.7,3.2078]
[1730758914259,1.6286,2394.1,2393.7,3.52385705]
[1730758914461,0.41798,2394.0,2393.8,0.41801]
[1730758914853,1.6286,2394.1,2393.7,3.2078]
[1730758915060,0.41799,2393.9,2393.7,3.62582]
[1730758915456,0.41798,2394.0,2393.8,0.418]
[1730758915650,0.41798,2394.0,2393.7,3.2078]
[1730758915955,0.418,2393.9,2393.7,3.62581]
[1730758916259,0.418,2393.9,2393.8,0.41801]
[1730758916564,0.418,2393.9,2393.7,3.62582]
[1730758916857,0.41798,2394.0,2393.7,3.2078]
[1730758917159,1.6286,2394.1,2393.7,3.2078]
[1730758917365,0.41799,2394.0,2393.8,0.418]
[1730758917862,1.6286,2394.1,2393.7,3.2078]
[1730758918057,0.418,2393.9,2393.8,0.41801]
[1730758918252,0.41799,2394.0,2393.8,0.41801]
[1730758919756,0.41798,2394.0,2393.8,0.41801]
[1730758919957,0.41801,2393.8,2393.7,3.2078]
[1730758921065,0.41801,2393.8,2393.7,3.62583]
[1730758921262,0.41801,2393.8,2393.7,3.2078]
[1730758921559,0.41806,2393.5,2393.4,3.62588]
[1730758921756,1.5868,2393.7,2393.1,3.2078]
[1730758922063,1.5868,2393.7,2393.2,0.41811]
[1730758922263,3.1034,2393.7,2393.2,0.41811]
[1730758922563,0.4181,2393.4,2393.2,0.41811]
[1730758923166,3.1034,2393.7,2393.1,3.2078]
[1730758923167,1.5868,2393.7,2393.1,3.2078]
[1730758923356,2.00485,2393.7,2393.5,0.41806]
[1730758923752,1.6286,2394.1,2393.4,3.2078]
[1730758923957,1.6286,2394.1,2393.7,3.2078]
[1730758925065,0.41798,2394.0,2393.8,0.418]
[1730758925366,0.41798,2394.0,2393.9,0.41799]
[1730758926060,1.6286,2394.1,2393.7,3.2078]
[1730758926269,0.41798,2394.0,2393.9,0.41799]
[1730758926462,1.6286,2394.1,2393.7,3.2078]
[1730758926665,2.04657,2394.1,2393.9,0.41798]
[1730758927061,1.6286,2394.1,2393.9,0.41798]
[1730758927368,0.41798,2394.0,2393.9,0.41798]
[1730758927569,1.6286,2394.1,2393.7,3.2078]
[1730758927770,0.418,2393.9,2393.8,0.418]
[1730758928665,1.6286,2394.1,2393.8,0.418]
[1730758928971,0.41798,2394.0,2393.7,3.62582]
[1730758929172,0.41801,2393.8,2393.7,3.62582]
[1730758931563,0.41801,2393.8,2393.7,0.41802]
[1730758931870,1.6286,2394.1,2393.5,3.2078]
[1730758932069,0.418,2393.9,2393.5,3.2078]
[1730758932672,2.04657,2394.1,2393.5,4.25294]
[1730758932861,2.04657,2394.1,2393.4,0.31790923]
[1730758932862,1.6286,2394.1,2394.0,0.41798]
[1730758933069,2.04656,2394.1,2394.0,0.41798]
[1730758933567,1.6286,2394.1,2393.8,3.2078]
[1730758933772,2.04657,2394.1,2394.0,0.41798]
[1730758934067,1.6286,2394.1,2394.0,0.41798]
[1730758935974,0.41794,2394.3,2394.1,0.41795]
[1730758936171,0.41793,2394.3,2394.2,0.41794]
[1730758936375,1.5264,2394.4,2393.8,4.5777]
[1730758936576,1.94431,2394.4,2394.3,0.41793]
[1730758936873,1.5264,2394.4,2394.3,0.41793]
[1730758937475,0.41785,2394.8,2394.3,4.1768]
[1730758937781,1.62871543,2395.0,2394.8,0.41784]
[1730758937782,1.94424,2394.9,2394.8,0.41784]
[1730758938173,1.5264,2394.9,2394.8,0.41784]
[1730758938481,1.62871543,2395.3,2394.6,3.2078]
[1730758938482,5.93238288,2395.5,2394.6,3.2078]
[1730758938779,0.41779,2395.1,2395.0,0.4178]
[1730758939374,0.41779,2395.1,2394.9,3.2078]
[1730758939571,0.41779,2395.1,2395.0,0.4178]
[1730758941080,0.41779,2395.1,2394.9,3.6256]
[1730758941579,0.41779,2395.1,2395.0,0.4178]
[1730758945085,0.41779,2395.1,2394.9,3.2078]
[1730758945086,1.597,2395.3,2394.9,3.2078]
[1730758945292,1.597,2395.3,2394.5,1.874]
[1730758945293,0.41781,2395.0,2394.8,0.41783]
[1730758945591,1.597,2395.3,2394.8,0.41783]
[1730758945790,0.41783,2394.9,2394.8,0.41784]
[1730758945991,0.41781,2395.0,2394.6,3.2078]
[1730758946189,0.41783,2394.9,2394.8,0.41784]
[1730758946390,0.41781,2395.0,2394.9,0.41782]
[1730758946586,0.41783,2394.9,2394.7,0.41784]
[1730758946790,0.41781,2395.0,2394.8,0.41782]
[1730758946987,0.41777,2395.2,2394.7,0.41785]
[1730758947186,0.41783,2394.9,2394.7,0.41785]
[1730758947882,0.41783,2394.9,2394.7,0.41784]
[1730758948285,6.46712745,2395.2,2394.6,3.2078]
[1730758948487,0.41786,2394.7,2394.6,3.2078]
[1730758948887,7.7824,2394.7,2394.3,3.2078]
[1730758949192,0.41791,2394.4,2394.3,3.2078]
[1730758949693,0.41791,2394.4,2394.3,3.62573]
[1730758950191,0.41791,2394.4,2394.3,3.2078]
[1730758950393,0.41798,2394.0,2393.9,0.41799]
[1730758950598,0.41798,2394.0,2393.9,0.62653931]
[1730758950891,0.41798,2394.0,2393.9,4.38534931]
[1730758951092,41.21798,2394.0,2393.9,4.59479]
[1730758951885,0.41798,2394.0,2393.9,4.59479]
[1730758952092,0.41797,2394.1,2394.0,0.41798]
[1730758952388,0.41798,2394.0,2393.9,0.41799]
[1730758952897,0.41798,2394.0,2393.9,4.59479]
[1730758953096,0.41798,2394.0,2393.9,0.41799]
[1730758953693,0.41798,2394.0,2393.9,4.59479]
[1730758954198,0.41798,2394.0,2393.9,0.41799]
[1730758954697,5.0356,2394.2,2393.8,1.3418]
[1730758954895,0.41797,2394.1,2393.9,0.41798]
[1730758956989,0.41798,2394.0,2393.9,0.41798]
[1730758957692,0.41797,2394.1,2393.9,0.41798]
[1730758958399,1.8278,2394.2,2393.9,0.41798]
[1730758958400,0.41798,2394.0,2393.9,0.41798]
[1730758959409,0.418,2393.9,2393.8,0.41801]
[1730758960298,3.6783,2394.2,2393.6,0.55434515]
[1730758960299,3.2078,2394.0,2393.6,0.55434515]
[1730758960505,2.22382,2393.8,2393.7,0.41803]
[1730758960998,2.22382,2393.8,2393.6,0.41804]
[1730758960999,0.41804,2393.7,2393.6,0.41804]
[1730758962504,1.8058,2393.8,2393.5,0.41806]
[1730758962704,0.41805,2393.6,2393.5,0.41805]
[1730758962899,0.41805,2393.7,2393.5,0.41805]
[1730758963100,1.8058,2393.8,2393.5,0.41805]
[1730758963301,0.41805,2393.6,2393.5,0.41805]
[1730758963801,0.41806,2393.6,2393.3,6.46712745]
[1730758964208,0.41806,2393.6,2393.5,0.41806]
[1730758965002,1.8505,2393.7,2393.3,3.2078]
[1730758965202,0.41807,2393.5,2393.4,0.41807]
[1730758965403,0.41806,2393.6,2393.5,0.41806]
[1730758966913,0.41806,2393.6,2393.4,0.41807]
[1730758967115,0.4181,2393.3,2393.2,3.62591]
[1730758967309,0.41813,2393.2,2392.9,5.0001]
[1730758967513,0.41813,2393.1,2393.0,0.41814]
[1730758968415,1.719,2393.2,2392.9,5.0001]
[1730758968611,2.13713,2393.2,2392.9,5.0001]
[1730758968917,0.41815,2393.1,2392.9,5.41826]
[1730758969111,1.719,2393.2,2392.9,5.0001]
[1730758969316,0.41815,2393.1,2393.0,0.41815]
[1730758970418,42.519,2393.2,2392.9,3.2078]
[1730758970612,5.0444,2393.0,2392.3,3.76226467]
[1730758970924,0.41823,2392.6,2392.4,0.41824]
[1730758971108,5.0444,2393.0,2392.3,3.2078]
[1730758971316,0.41826,2392.4,2392.3,3.62606]
[1730758971513,0.41826,2392.4,2392.3,3.2078]
[1730758971817,1.04544,2392.9,2392.0,2.29019209]
[1730758971818,0.41828,2392.3,2392.0,1.7353]
[1730758972015,2.23089,2392.3,2392.1,0.4183]
[1730758972413,1.8126,2392.3,2392.0,1.7353]
[1730758972612,0.41835,2391.9,2391.7,3.2078]
[1730758972813,0.41836,2391.9,2391.7,3.62617]
[1730758973011,0.41836,2391.8,2391.7,3.2078]
[1730758973418,0.41836,2391.9,2391.6,0.41839]
[1730758973717,3.2078,2392.2,2391.6,0.41839]
[1730758973718,0.41837,2391.8,2391.6,0.41839]
[1730758974119,3.2078,2391.9,2391.3,6.7848]
[1730758974417,6.11764745,2392.3,2390.7,0.21]
[1730758974418,0.41854,2390.8,2390.7,0.21]
[1730758974622,1.04616,2391.3,2390.4,1.62139027]
[1730758974623,3.2078,2391.2,2390.4,1.7124]
[1730758974825,3.2078,2391.2,2390.0,0.4184]
[1730758974826,3.2078,2390.8,2390.0,0.4184]
[1730758975310,0.41862,2390.4,2390.1,4.66453043]
[1730758975515,3.6264,2390.5,2390.1,9.26718043]
[1730758975715,3.6264,2390.5,2390.1,5.08318043]
[1730758976226,3.2078,2390.5,2390.1,4.66453043]
[1730758976420,3.6264,2390.5,2390.1,0.41865]